bitfinex/quotes_BTCUSD_20250102
["timestamp","ask_amount","ask_price","bid_price","bid_amount"]
[1735844933883,0.009,97531.0,97530.0,0.61511632]
[1735844934285,0.018,97531.0,97530.0,0.71611632]
[1735844934484,0.018,97531.0,97530.0,0.96611632]
[1735844935379,0.0180855,97531.0,97530.0,1.04281632]
[1735844935857,0.0180855,97531.0,97530.0,1.18967332]
[1735844936067,0.0180855,97531.0,97530.0,1.20180332]
[1735844936486,0.0090855,97531.0,97530.0,1.08691632]
[1735844936660,8.55e-05,97531.0,97530.0,1.08591632]
[1735844936900,0.0090855,97531.0,97530.0,2.58691632]
[1735844937291,0.0090855,97531.0,97530.0,2.58591632]
[1735844937440,0.0180855,97531.0,97530.0,2.58691632]
[1735844937656,0.0180855,97531.0,97530.0,1.08691632]
[1735844937854,0.0270855,97531.0,97530.0,1.08791632]
[1735844938243,0.0180855,97531.0,97530.0,1.08691632]
[1735844938645,0.0270855,97531.0,97530.0,1.08791632]
[1735844939168,0.0270855,97531.0,97530.0,0.63775132]
[1735844939354,0.0180855,97531.0,97530.0,0.73675132]
[1735844939684,0.0090855,97531.0,97530.0,0.73675132]
[1735844939885,0.0180855,97531.0,97530.0,0.53775132]
[1735844940093,0.0180855,97531.0,97530.0,0.63775132]
[1735844940331,0.20503,97547.0,97538.0,0.1]
[1735844940538,0.20503,97547.0,97534.0,0.205056]
[1735844940733,0.173,97558.0,97530.0,0.002]
[1735844940940,0.173,97556.0,97530.0,0.001]
[1735844941140,0.205056,97534.0,97530.0,0.001]
[1735844941616,0.155056,97534.0,97522.0,0.20508]
[1735844941819,0.018,97531.0,97530.0,0.002]
[1735844942362,0.009,97531.0,97530.0,0.001]
[1735844943369,0.009,97531.0,97530.0,0.01]
[1735844943574,0.001,97531.0,97530.0,0.009]
[1735844944598,0.001,97531.0,97530.0,0.01]
[1735844945000,0.001,97531.0,97530.0,0.009]
[1735844945262,0.002,97531.0,97530.0,0.009]
[1735844948346,0.27898632,97531.0,97530.0,0.009]
[1735844948966,0.79164632,97531.0,97530.0,0.009]
[1735844949605,0.8021925,97531.0,97530.0,0.009]
[1735844949821,0.205079,97523.0,97522.0,0.000171]
[1735844950033,0.84472532,97523.0,97522.0,0.000171]
[1735844950702,0.99472532,97523.0,97522.0,0.000171]
[1735844951153,0.97172532,97523.0,97522.0,0.000171]
[1735844951363,0.717739,97523.0,97522.0,0.000171]
[1735844951572,0.51266,97523.0,97522.0,0.000171]
[1735844952019,0.51366,97523.0,97522.0,0.006171]
[1735844952233,0.51466,97523.0,97522.0,0.011171]
[1735844952443,0.51366,97523.0,97522.0,0.006171]
[1735844952615,0.51266,97523.0,97522.0,0.000171]
[1735844952860,0.51366,97523.0,97522.0,0.009171]
[1735844953818,0.51466,97523.0,97522.0,0.014171]
[1735844954024,0.51366,97523.0,97522.0,0.009171]
[1735844954231,0.51266,97523.0,97522.0,0.000171]
[1735844954438,0.51366,97523.0,97522.0,0.014171]
[1735844954661,0.51466,97523.0,97522.0,0.014171]
[1735844956551,0.51466,97523.0,97522.0,1.514171]
[1735844958180,0.002,97523.0,97522.0,1.514171]
[1735844960740,0.002,97523.0,97522.0,1.79875732]
[1735844960947,0.002,97523.0,97522.0,1.89875732]
[1735844962170,0.002,97523.0,97522.0,2.04875732]
[1735844963420,0.001,97523.0,97522.0,2.04375732]
[1735844963842,0.009,97523.0,97522.0,2.03575732]
[1735844964264,0.01,97523.0,97522.0,2.03675732]
[1735844964484,0.0071723,97523.0,97522.0,2.03675732]
[1735844964667,0.20499,97566.0,97533.0,0.833258]
[1735844964928,0.20499,97566.0,97533.0,1.13994432]
[1735844965149,0.204998,97562.0,97533.0,1.13994432]
[1735844965772,0.204998,97562.0,97533.0,2.53994432]
[1735844965773,0.205006,97558.0,97533.0,2.53994432]
[1735844965954,0.204998,97562.0,97533.0,2.54094432]
[1735844966325,0.204998,97562.0,97533.0,2.44094432]
[1735844966529,0.204998,97562.0,97533.0,2.54094432]
[1735844966794,0.20499,97566.0,97533.0,2.54094432]
[1735844967533,0.0050855,97534.0,97533.0,2.64194432]
[1735844967731,0.0050855,97534.0,97533.0,2.39194432]
[1735844967981,0.0050855,97534.0,97533.0,0.89194432]
[1735844968400,0.0050855,97534.0,97533.0,2.39194432]
[1735844975257,0.0050855,97534.0,97533.0,2.29194432]
[1735844978284,0.0050855,97534.0,97533.0,2.19194432]
[1735844979330,0.0050855,97534.0,97533.0,2.54194432]
[1735844981478,0.2050864,97561.0,97551.0,0.1]
[1735844981696,8.54e-05,97561.0,97557.0,0.305007]
[1735844982047,8.54e-05,97561.0,97560.0,0.1]
[1735844982253,8.54e-05,97561.0,97560.0,0.20398632]
[1735844982627,0.00023265,97561.0,97560.0,1.70398632]
[1735844982829,0.00023265,97561.0,97560.0,1.80398632]
[1735844983034,0.00023265,97561.0,97560.0,1.95398632]
[1735844983256,0.00023265,97561.0,97560.0,1.98566511]
[1735844983660,0.00523265,97561.0,97560.0,2.69622669]
[1735844984023,0.00523265,97561.0,97560.0,2.81700008]
[1735844984225,0.01023265,97561.0,97560.0,2.81800008]
[1735844984425,0.01023265,97561.0,97560.0,2.81900008]
[1735844984629,0.005,97561.0,97560.0,2.81900008]
[1735844984865,0.00057745,97604.0,97571.0,0.832278]
[1735844985069,0.00013445,97572.0,97571.0,1.38861432]
[1735844985279,0.00013445,97572.0,97571.0,1.41007563]
[1735844985428,0.00013445,97572.0,97571.0,2.91007563]
[1735844986282,0.00013445,97572.0,97571.0,3.09160496]
[1735844986574,0.00013445,97572.0,97571.0,3.24140496]
[1735844986713,0.00057732,97606.0,97572.0,0.377976]
[1735844986915,0.00057732,97606.0,97578.0,0.554964]
[1735844987113,0.00057732,97606.0,97578.0,1.62847005]
[1735844987327,0.00057732,97613.0,97578.0,2.98016205]
[1735844987533,0.00057732,97613.0,97578.0,3.02766505]
[1735844987950,0.00057732,97613.0,97578.0,3.09295]
[1735844988167,0.00057732,97613.0,97578.0,3.09395]
[1735844988424,0.00057732,97613.0,97578.0,3.020635]
[1735844988847,0.00057732,97613.0,97578.0,3.019635]
[1735844989011,0.00057732,97613.0,97578.0,3.02627132]
[1735844989212,0.00057732,97613.0,97578.0,2.9809817]
[1735844989414,0.00057732,97613.0,97578.0,2.9799817]
[1735844989833,0.00057732,97613.0,97578.0,2.9701127]
[1735844990046,0.00057732,97613.0,97578.0,3.12220093]
[1735844990285,0.00057732,97613.0,97578.0,2.6543486]
[1735844991052,0.00057732,97613.0,97578.0,2.6533486]
[1735844991230,0.00057732,97613.0,97578.0,3.19662758]
[1735844991590,0.00057732,97613.0,97578.0,3.16069376]
[1735844991758,5e-07,97579.0,97578.0,3.25969376]
[1735844991977,5e-07,97579.0,97578.0,3.14702676]
[1735844992280,5e-07,97579.0,97578.0,3.14802676]
[1735844992487,0.00107732,97625.0,97599.0,0.75492]
[1735844992690,0.00014896,97600.0,97599.0,1.57390632]
[1735844993091,0.00014896,97600.0,97599.0,3.07390632]
[1735844994039,0.00014896,97600.0,97599.0,3.07490632]
[1735844994444,0.00014896,97600.0,97599.0,3.07590632]
[1735844994733,0.00014896,97600.0,97599.0,2.97590632]
[1735844995293,0.00014896,97600.0,97599.0,2.42098632]
[1735844995525,0.00014896,97600.0,97599.0,2.31828632]
[1735844996004,0.00014896,97600.0,97599.0,2.21828632]
[1735844996116,0.00014896,97600.0,97599.0,2.1143]
[1735844996327,0.00014896,97600.0,97599.0,2.2123]
[1735844996527,0.00014896,97600.0,97599.0,2.1133]
[1735844996772,0.00914896,97600.0,97599.0,2.1143]
[1735844996952,0.00923446,97600.0,97599.0,2.1133]
[1735844997149,0.00023446,97600.0,97599.0,0.5133]
[1735844997343,2.474e-05,97600.0,97599.0,0.5133]
[1735844997577,0.00902474,97600.0,97599.0,0.43735363]
[1735844997772,0.00902474,97600.0,97599.0,1.93735363]
[1735844999861,0.00902474,97600.0,97599.0,2.14133995]
[1735845000272,0.00902474,97600.0,97599.0,2.24133995]
[1735845000722,0.00902474,97600.0,97599.0,0.74133995]
[1735845001297,0.00902474,97600.0,97599.0,2.24133995]
[1735845002348,0.00902474,97600.0,97599.0,2.03735363]
[1735845002975,0.00902474,97600.0,97599.0,2.24133995]
[1735845003283,0.00902474,97600.0,97599.0,2.59133995]
[1735845003700,0.00902474,97600.0,97599.0,2.49133995]
[1735845005579,0.00902474,97600.0,97599.0,2.49033995]
[1735845005779,0.00902474,97600.0,97599.0,2.49133995]
[1735845006427,2.474e-05,97600.0,97599.0,2.49033995]
[1735845007010,0.00802474,97600.0,97599.0,2.49133995]
[1735845007241,0.00802474,97600.0,97599.0,2.49033995]
[1735845007435,0.00802474,97600.0,97599.0,2.49133995]
[1735845007814,0.00802474,97600.0,97599.0,2.39133995]
[1735845009925,0.031781,97614.0,97604.0,0.58922]
[1735845010143,0.236671,97613.0,97604.0,0.58922]
[1735845010344,0.031781,97612.0,97604.0,0.58922]
[1735845010525,0.031781,97611.0,97604.0,0.58922]
[1735845010722,0.031781,97610.0,97604.0,0.58922]
[1735845010940,0.00148957,97620.0,97604.0,0.58922]
[1735845010941,0.031781,97609.0,97605.0,0.204905]
[1735845011148,0.031781,97608.0,97605.0,0.999032]
[1735845011373,0.20488,97618.0,97607.0,0.1]
[1735845011579,0.03182654,97617.0,97607.0,0.6892]
[1735845011779,0.03182654,97616.0,97607.0,0.6892]
[1735845011986,0.204888,97614.0,97607.0,0.5892]
[1735845012143,0.03182654,97613.0,97607.0,0.5892]
[1735845012346,0.03182654,97612.0,97607.0,0.6892]
[1735845012574,0.03182654,97611.0,97607.0,0.6892]
[1735845012802,0.03182654,97610.0,97607.0,0.6892]
[1735845013099,0.03182654,97609.0,97607.0,0.6892]
[1735845013315,0.20488,97618.0,97608.0,1.5]
[1735845013506,0.0318496,97617.0,97608.0,2.0892]
[1735845013817,0.0318496,97616.0,97608.0,2.0892]
[1735845014111,0.0318496,97615.0,97608.0,2.0892]
[1735845014309,0.0318496,97614.0,97608.0,2.0892]
[1735845014509,0.00048957,97620.0,97608.0,2.0892]
[1735845014510,0.204898,97610.0,97608.0,2.0892]
[1735845014739,0.0318496,97609.0,97608.0,2.0982]
[1735845014957,0.0318496,97609.0,97608.0,2.1072]
[1735845016005,0.0318496,97609.0,97608.0,2.0982]
[1735845016171,0.0318496,97609.0,97608.0,2.0892]
[1735845016382,0.0318496,97609.0,97608.0,2.1072]
[1735845016725,0.0318496,97609.0,97608.0,2.0982]
[1735845016925,0.0318496,97609.0,97608.0,2.0892]
[1735845017134,0.0318496,97609.0,97608.0,2.1072]
[1735845017622,0.0318496,97609.0,97608.0,0.6072]
[1735845018620,0.0318496,97609.0,97608.0,2.1072]
[1735845021101,0.0318496,97609.0,97608.0,2.2072]
[1735845021911,0.0318496,97609.0,97608.0,2.1072]
[1735845022344,0.0318496,97609.0,97608.0,0.5892]
[1735845022798,0.21591008,97609.0,97608.0,0.5912]
[1735845022970,0.15883592,97609.0,97608.0,0.590371]
[1735845023172,0.204918,97600.0,97599.0,0.000171]
[1735845023374,0.42095392,97600.0,97599.0,0.000171]
[1735845023573,0.3169676,97600.0,97599.0,0.000171]
[1735845023963,0.3169676,97600.0,97599.0,0.512471]
[1735845024362,0.3169676,97600.0,97599.0,0.521471]
[1735845026011,0.42095392,97600.0,97599.0,0.530471]
[1735845026230,0.42095392,97600.0,97599.0,0.521471]
[1735845026448,0.42095392,97600.0,97599.0,0.530471]
[1735845026721,0.44395392,97600.0,97599.0,0.530471]
[1735845027712,0.3169676,97600.0,97599.0,0.530471]
[1735845027897,0.32420241,97600.0,97599.0,0.530471]
[1735845029793,0.21215281,97600.0,97599.0,0.530471]
[1735845029998,0.204903,97607.0,97599.0,0.530471]
[1735845030197,0.204907,97605.0,97599.0,0.530471]
[1735845030399,0.204907,97605.0,97600.0,1.5]
[1735845030664,0.204915,97602.0,97600.0,2.01229]
[1735845033466,0.23686098,97601.0,97600.0,2.01229]
[1735845033720,0.23686098,97601.0,97600.0,2.03029]
[1735845034117,0.23686098,97601.0,97600.0,2.02129]
[1735845034285,0.23686098,97601.0,97600.0,2.01229]
[1735845034708,0.23686098,97601.0,97600.0,2.02129]
[1735845035063,0.03194598,97601.0,97600.0,2.02129]
[1735845035515,0.204902,97608.0,97600.0,2.03029]
[1735845035722,0.03194598,97607.0,97600.0,2.03029]
[1735845036085,0.03194598,97607.0,97601.0,0.204915]
[1735845036323,8.55e-05,97609.0,97602.0,0.0816]
[1735845036522,8.55e-05,97609.0,97602.0,0.59388]
[1735845036803,8.55e-05,97609.0,97603.0,0.204911]
[1735845036953,8.55e-05,97609.0,97605.0,0.304907]
[1735845037154,8.55e-05,97609.0,97605.0,0.61227]
[1735845037980,8.55e-05,97609.0,97608.0,0.1]
[1735845038319,8.55e-05,97609.0,97608.0,0.81623632]
[1735845038862,8.55e-05,97609.0,97608.0,0.81619632]
[1735845039060,8.55e-05,97609.0,97608.0,2.31619632]
[1735845039715,8.55e-05,97609.0,97608.0,2.31719632]
[1735845041260,8.55e-05,97609.0,97608.0,2.31819632]
[1735845042752,0.0003461,97620.0,97609.0,0.204899]
[1735845042973,0.0003461,97620.0,97610.0,0.10398632]
[1735845043156,0.0003461,97620.0,97610.0,0.61622632]
[1735845043722,0.0003461,97620.0,97614.0,0.09996]
[1735845043921,0.0003461,97620.0,97614.0,0.304846]
[1735845044117,0.0003461,97620.0,97614.0,0.61218]
[1735845044324,0.0003461,97620.0,97614.0,0.51222]
[1735845044821,0.0003461,97620.0,97615.0,0.09996]
[1735845045019,0.0003461,97620.0,97617.0,0.09996]
[1735845045228,0.0003461,97620.0,97617.0,0.61217]
[1735845045667,0.0004316,97620.0,97618.0,1.5]
[1735845045821,0.0004316,97620.0,97618.0,2.0122]
[1735845046814,0.0004316,97620.0,97619.0,0.58872432]
[1735845047010,0.0004316,97620.0,97619.0,1.10092432]
[1735845047419,0.0004316,97620.0,97619.0,2.60092432]
[1735845048084,0.0004316,97620.0,97619.0,2.60192432]
[1735845048924,0.0004316,97620.0,97619.0,2.60292432]
[1735845052835,0.0004316,97620.0,97619.0,2.0142]
[1735845054732,0.0004316,97620.0,97619.0,2.0141]
[1735845058548,0.0004316,97620.0,97619.0,2.014271]
[1735845059210,0.03232445,97620.0,97619.0,2.014271]
[1735845059540,0.03232445,97620.0,97619.0,2.013271]
[1735845059749,0.03232445,97620.0,97619.0,2.012271]
[1735845059946,0.0004316,97620.0,97619.0,2.021271]
[1735845061055,0.0004316,97620.0,97619.0,2.030271]
[1735845061255,0.0004316,97620.0,97619.0,2.021271]
[1735845061470,0.2053076,97620.0,97619.0,2.021271]
[1735845061753,0.2063076,97620.0,97619.0,2.030271]
[1735845062334,0.23822863,97620.0,97619.0,2.030271]
[1735845062535,0.2063076,97620.0,97619.0,2.030271]
[1735845063152,0.23823026,97620.0,97619.0,2.030271]
[1735845063778,0.23823026,97620.0,97619.0,0.530271]
[1735845064259,0.23823026,97620.0,97619.0,2.030271]
[1735845071471,0.23823026,97620.0,97619.0,0.530271]
[1735845072083,0.23823026,97620.0,97619.0,2.030271]
[1735845074819,0.03335426,97620.0,97619.0,2.030271]
[1735845075109,0.03335426,97620.0,97619.0,2.130231]
[1735845075255,0.0014316,97620.0,97619.0,2.130231]
[1735845076014,0.0014316,97620.0,97619.0,2.030271]
[1735845076342,0.0014316,97620.0,97619.0,2.021271]
[1735845076343,0.0004316,97620.0,97619.0,2.021271]
[1735845076741,0.0074316,97620.0,97619.0,2.013271]
[1735845077168,0.04841408,97620.0,97619.0,2.014271]
[1735845077801,0.00841408,97620.0,97619.0,2.014271]
[1735845078076,0.21329008,97620.0,97619.0,2.014271]
[1735845078847,0.00841408,97620.0,97619.0,2.014271]
[1735845079091,0.204873,97622.0,97619.0,2.014271]
[1735845079293,0.031983,97621.0,97619.0,2.014271]
[1735845079445,0.204876,97620.0,97619.0,2.014271]
[1735845079647,0.236859,97620.0,97619.0,2.014271]
[1735845080000,0.23685842,97620.0,97619.0,2.013271]
[1735845080122,0.03198242,97620.0,97619.0,2.013271]
[1735845080331,0.03198242,97621.0,97619.0,2.013271]
[1735845080526,0.03198242,97621.0,97619.0,2.012271]
[1735845080794,8.55e-05,97620.0,97619.0,2.014271]
[1735845081354,8.55e-05,97620.0,97619.0,2.012271]
[1735845081577,8.55e-05,97620.0,97619.0,2.112231]
[1735845081787,8.55e-05,97620.0,97619.0,2.190931]
[1735845082238,8.55e-05,97620.0,97619.0,2.189931]
[1735845082568,8.55e-05,97620.0,97619.0,2.191931]
[1735845082770,8.55e-05,97620.0,97619.0,2.34361732]
[1735845083746,8.55e-05,97620.0,97619.0,2.34261732]
[1735845083951,8.55e-05,97620.0,97619.0,2.34161732]
[1735845084136,8.55e-05,97620.0,97619.0,2.34261732]
[1735845084349,8.55e-05,97620.0,97619.0,2.34361732]
[1735845085618,8.55e-05,97620.0,97619.0,2.114231]
[1735845088785,8.55e-05,97620.0,97619.0,0.614231]
[1735845089163,8.55e-05,97620.0,97619.0,2.014271]
[1735845089806,0.03207847,97620.0,97619.0,2.014271]
[1735845090277,8.55e-05,97620.0,97619.0,2.014271]
[1735845091210,0.03207847,97620.0,97619.0,2.114231]
[1735845091416,8.55e-05,97620.0,97619.0,2.114231]
[1735845092165,8.55e-05,97620.0,97619.0,2.014271]
[1735845093789,0.03207847,97620.0,97619.0,2.014271]
[1735845094200,8.55e-05,97620.0,97619.0,2.014271]
[1735845094915,0.03207847,97620.0,97619.0,2.014271]
[1735845095313,8.55e-05,97620.0,97619.0,2.014271]
[1735845095985,0.03207847,97620.0,97619.0,2.014271]
[1735845096152,8.55e-05,97620.0,97619.0,2.014271]
[1735845098277,0.03207847,97620.0,97619.0,2.014271]
[1735845098677,8.55e-05,97620.0,97619.0,2.014271]
[1735845098886,0.03207847,97620.0,97619.0,2.014271]
[1735845100118,0.03207847,97620.0,97619.0,2.014231]
[1735845101447,0.03207847,97620.0,97619.0,0.514231]
[1735845101652,8.55e-05,97620.0,97619.0,0.43728443]
[1735845101807,0.00883292,97620.0,97619.0,0.43728443]
[1735845102023,0.28966479,97620.0,97619.0,0.43728443]
[1735845102397,0.28966479,97620.0,97619.0,0.43628443]
[1735845102398,0.03207847,97620.0,97619.0,0.43628443]
[1735845102913,0.03207847,97620.0,97619.0,0.44428443]
[1735845103316,0.03207847,97620.0,97619.0,0.45328443]
[1735845103521,0.03207847,97620.0,97619.0,0.43528443]
[1735845103998,0.03207847,97620.0,97619.0,0.44428443]
[1735845104201,0.03307847,97620.0,97619.0,0.45328443]
[1735845104586,0.03207847,97620.0,97619.0,1.94428443]
[1735845104989,0.03307847,97620.0,97619.0,1.95328443]
[1735845106298,0.03307847,97620.0,97619.0,2.15324443]
[1735845106499,0.0010855,97620.0,97619.0,2.15324443]
[1735845106725,0.0010855,97620.0,97619.0,2.13824443]
[1735845107517,8.55e-05,97620.0,97619.0,2.12924443]
[1735845107720,8.55e-05,97620.0,97619.0,2.13824443]
[1735845108747,8.55e-05,97620.0,97619.0,2.12924443]
[1735845109189,8.55e-05,97620.0,97619.0,2.13824443]
[1735845109635,8.55e-05,97620.0,97619.0,0.63824443]
[1735845110250,8.55e-05,97620.0,97619.0,2.13824443]
[1735845112017,8.55e-05,97620.0,97619.0,2.21604443]
[1735845122886,8.55e-05,97620.0,97619.0,2.20704443]
[1735845123849,8.55e-05,97620.0,97619.0,2.21604443]
[1735845132951,8.55e-05,97620.0,97619.0,2.13824443]
[1735845136730,8.55e-05,97620.0,97619.0,2.24223075]
[1735845136928,8.55e-05,97620.0,97619.0,2.28783075]
[1735845142348,8.55e-05,97620.0,97619.0,0.78783075]
[1735845142763,8.55e-05,97620.0,97619.0,2.28783075]
[1735845155192,8.55e-05,97620.0,97619.0,2.36503075]
[1735845156498,8.55e-05,97620.0,97619.0,2.31943075]
[1735845158357,8.55e-05,97620.0,97619.0,2.03828443]
[1735845158555,0.03211097,97620.0,97619.0,2.13824443]
[1735845158799,0.03211097,97620.0,97619.0,2.03828443]
[1735845160581,0.04124289,97620.0,97619.0,2.03828443]
[1735845160839,0.04124289,97620.0,97619.0,2.03824443]
[1735845161114,0.03211097,97620.0,97619.0,2.03824443]
[1735845162557,0.03211097,97620.0,97619.0,1.93824443]
[1735845163368,0.0322062,97620.0,97619.0,1.93824443]
[1735845164633,0.04163372,97620.0,97619.0,1.93824443]
[1735845166418,0.0322062,97620.0,97619.0,1.93824443]
[1735845167387,0.0322062,97620.0,97619.0,2.03820443]
[1735845167588,0.00018073,97620.0,97619.0,2.18739075]
[1735845175306,0.00018073,97620.0,97619.0,2.08340443]
[1735845175499,0.00018073,97620.0,97619.0,2.03820443]
[1735845176282,0.00018073,97620.0,97619.0,1.93824443]
[1735845176503,0.03218524,97620.0,97619.0,1.93824443]
[1735845178833,0.03218524,97620.0,97619.0,1.92924443]
[1735845179246,0.03218524,97620.0,97619.0,1.92024443]
[1735845180507,0.03218524,97620.0,97619.0,1.92924443]
[1735845180889,0.03218524,97620.0,97619.0,1.93824443]
[1735845182291,0.00018073,97620.0,97619.0,2.03820443]
[1735845184636,0.03218803,97620.0,97619.0,2.03820443]
[1735845185415,0.03218803,97620.0,97619.0,0.43824443]
[1735845185756,0.10898803,97620.0,97619.0,0.43824443]
[1735845185962,0.10898803,97620.0,97619.0,0.36129691]
[1735845188847,0.10898803,97620.0,97619.0,0.35229691]
[1735845189076,0.10898803,97620.0,97619.0,0.36129691]
[1735845189497,0.10898803,97620.0,97619.0,0.35229691]
[1735845190134,0.10898803,97620.0,97619.0,0.36129691]
[1735845190885,0.10898803,97620.0,97619.0,0.35229691]
[1735845191055,0.10898803,97620.0,97619.0,0.36129691]
[1735845191833,0.21297435,97620.0,97619.0,0.36129691]
[1735845193088,0.23597435,97620.0,97619.0,0.36129691]
[1735845201789,0.23597435,97620.0,97619.0,1.86129691]
[1735845202003,0.23597435,97620.0,97619.0,0.36129691]
[1735845206033,0.23597435,97620.0,97619.0,0.28434231]
[1735845208354,0.43347435,97620.0,97619.0,0.24336631]
[1735845208564,0.350815,97601.0,97600.0,2.000171]
[1735845208769,0.63680862,97601.0,97600.0,2.000171]
[1735845209803,0.63680862,97601.0,97600.0,2.009171]
[1735845210703,0.58930862,97601.0,97600.0,2.009171]
[1735845210914,0.59898232,97601.0,97600.0,2.018171]
[1735845211120,0.59898232,97601.0,97600.0,2.009171]
[1735845211330,0.73644514,97601.0,97600.0,2.009171]
[1735845211496,0.73744514,97601.0,97600.0,2.018171]
[1735845211716,0.73744514,97601.0,97600.0,2.009171]
[1735845211717,0.73644514,97601.0,97600.0,2.009171]
[1735845212079,0.73744514,97601.0,97600.0,2.009171]
[1735845212483,0.60098232,97601.0,97600.0,2.015171]
[1735845212812,0.59598232,97601.0,97600.0,2.015171]
[1735845213229,0.61666597,97601.0,97600.0,2.015171]
[1735845213424,0.61666597,97601.0,97600.0,1.94766193]
[1735845214208,0.61666597,97601.0,97600.0,1.90667793]
[1735845214439,0.77005229,97601.0,97600.0,1.58650531]
[1735845214638,0.77005229,97601.0,97600.0,1.4531121]
[1735845214838,0.77005229,97601.0,97600.0,1.3549441]
[1735845215061,0.66606597,97601.0,97600.0,1.3344521]
[1735845215315,0.66606597,97601.0,97600.0,1.1690891]
[1735845215450,0.54946597,97601.0,97600.0,0.7012891]
[1735845215657,0.54946597,97601.0,97600.0,0.5940291]
[1735845216082,0.54846597,97601.0,97600.0,0.5880291]
[1735845216487,0.58077988,97601.0,97600.0,0.5556491]
[1735845216689,0.58077988,97601.0,97600.0,0.4941731]
[1735845216893,0.58077988,97601.0,97600.0,0.4511891]
[1735845217090,0.58077988,97601.0,97600.0,0.4521891]
[1735845217295,0.54846597,97601.0,97600.0,0.4521891]
[1735845217500,0.54846597,97601.0,97599.0,0.000171]
[1735845217501,0.377968,97576.0,97575.0,0.000171]
[1735845217714,0.48195432,97576.0,97575.0,0.000171]
[1735845217920,0.023,97570.0,97552.0,0.047]
[1735845218114,0.205016,97553.0,97552.0,0.047]
[1735845218813,0.205016,97553.0,97552.0,0.04748957]
[1735845219603,0.31000232,97553.0,97552.0,0.05648957]
[1735845219804,0.31000232,97553.0,97552.0,1.55648957]
[1735845220052,0.31000232,97553.0,97552.0,0.05648957]
[1735845220361,0.31000232,97553.0,97552.0,0.00948957]
[1735845220362,0.33300232,97553.0,97552.0,0.00948957]
[1735845220719,0.34343532,97553.0,97552.0,0.01848957]
[1735845221351,0.34343532,97553.0,97552.0,0.01844957]
[1735845221549,0.49143532,97553.0,97552.0,0.00044957]
[1735845221752,0.49243532,97553.0,97552.0,0.00444957]
[1735845221968,0.52527852,97553.0,97552.0,0.01344957]
[1735845222325,0.49243532,97553.0,97552.0,0.00444957]
[1735845222744,0.49243532,97553.0,97552.0,0.00844957]
[1735845223120,0.49143532,97553.0,97552.0,0.00044957]
[1735845223628,0.49243532,97553.0,97552.0,0.00744957]
[1735845224047,0.49343532,97553.0,97552.0,0.01444957]
[1735845224193,0.49243532,97553.0,97552.0,0.00744957]
[1735845224836,0.49343532,97553.0,97552.0,0.01444957]
[1735845225188,0.49343532,97553.0,97552.0,0.09094957]
[1735845225530,0.49343532,97553.0,97552.0,1.59094957]
[1735845227489,0.49343532,97553.0,97552.0,1.51394232]
[1735845227727,0.205041,97541.0,97540.0,0.0486]
[1735845227899,0.205041,97541.0,97540.0,0.04864896]
[1735845229643,0.206041,97541.0,97540.0,0.05764896]
[1735845230049,0.206041,97541.0,97540.0,1.55764896]
[1735845230440,0.207041,97541.0,97540.0,1.64734896]
[1735845232237,0.207041,97541.0,97540.0,0.14734896]
[1735845233863,0.207041,97541.0,97540.0,1.64734896]
[1735845234091,0.002,97541.0,97540.0,1.64734896]
[1735845235536,0.002,97541.0,97540.0,0.14734896]
[1735845237457,0.202079,97543.0,97540.0,0.14734896]
[1735845237665,0.407118,97543.0,97540.0,0.14734896]
[1735845238378,0.407118,97543.0,97540.0,0.13834896]
[1735845238746,0.408118,97543.0,97540.0,0.13834896]
[1735845238945,0.409118,97543.0,97540.0,0.14734896]
[1735845239141,0.204079,97543.0,97540.0,0.14734896]
[1735845240071,0.409117,97543.0,97540.0,0.14734896]
[1735845240409,0.204079,97543.0,97541.0,1.5]
[1735845241251,0.202079,97543.0,97541.0,1.5]
[1735845241457,0.03188652,97542.0,97541.0,1.5]
[1735845241679,0.03188652,97542.0,97541.0,1.508]
[1735845241864,0.03188652,97542.0,97541.0,1.512]
[1735845242412,0.03188652,97542.0,97541.0,1.504]
[1735845242550,0.03288652,97542.0,97541.0,1.512]
[1735845242759,0.03288652,97542.0,97541.0,1.508]
[1735845242974,0.03288652,97542.0,97541.0,1.5081712]
[1735845243982,0.03388652,97542.0,97541.0,1.5171712]
[1735845244703,0.0436345,97542.0,97541.0,1.5171712]
[1735845245247,0.0436345,97542.0,97541.0,0.0171712]
[1735845246428,0.14762082,97542.0,97541.0,0.0171712]
[1735845249841,0.0436345,97542.0,97541.0,0.0171712]
[1735845250484,0.0436345,97542.0,97541.0,0.2454312]
[1735845250665,0.03388652,97542.0,97541.0,0.2454312]
[1735845250862,0.03388652,97542.0,97541.0,1.7454312]
[1735845252198,8.56e-05,97553.0,97550.0,0.457646]
[1735845252400,8.56e-05,97553.0,97552.0,0.18066]
[1735845252612,8.56e-05,97553.0,97552.0,0.22826]
[1735845253241,8.56e-05,97553.0,97552.0,0.7408]
[1735845253690,8.56e-05,97553.0,97552.0,2.2408]
[1735845254270,8.56e-05,97553.0,97552.0,2.34478632]
[1735845254887,0.0010856,97553.0,97552.0,2.35378632]
[1735845255270,8.56e-05,97553.0,97552.0,2.35460073]
[1735845255651,8.56e-05,97553.0,97552.0,2.35560073]
[1735845255851,8.56e-05,97553.0,97552.0,2.35660073]
[1735845256304,8.56e-05,97553.0,97552.0,2.35560073]
[1735845259295,8.56e-05,97553.0,97552.0,2.2418]
[1735845260963,8.56e-05,97553.0,97552.0,2.14284]
[1735845261169,8.56e-05,97553.0,97552.0,2.01454]
[1735845261828,8.56e-05,97553.0,97552.0,0.51354]
[1735845262030,8.56e-05,97553.0,97552.0,0.51254]
[1735845262223,0.0020856,97553.0,97552.0,0.52154]
[1735845262428,0.01189076,97553.0,97552.0,0.52154]
[1735845262850,0.0010856,97553.0,97552.0,0.51254]
[1735845263287,0.0010856,97553.0,97552.0,2.01254]
[1735845263915,8.56e-05,97553.0,97552.0,2.01254]
[1735845264213,0.0010856,97553.0,97552.0,2.03054]
[1735845264414,0.0020856,97553.0,97552.0,2.03054]
[1735845266833,0.03402538,97553.0,97552.0,2.03054]
[1735845267844,0.03402538,97553.0,97552.0,2.0307112]
[1735845269670,0.03402538,97553.0,97552.0,0.5307112]
[1735845270299,0.03402538,97553.0,97552.0,2.0307112]
[1735845277236,0.1610117,97553.0,97552.0,2.0307112]
[1735845277395,0.3120517,97553.0,97552.0,0.5307112]
[1735845278235,0.4027592,97553.0,97552.0,0.5217112]
[1735845278608,0.4027592,97553.0,97552.0,0.5187112]
[1735845278814,0.4037592,97553.0,97552.0,0.5277112]
[1735845279427,0.3120517,97553.0,97552.0,0.5277112]
[1735845280437,0.4501189,97553.0,97552.0,0.5277112]
[1735845281536,0.3120517,97553.0,97552.0,0.5277112]